bitfinex-derivatives/quotes_BTCF0:USTF0_20250207
["timestamp","ask_amount","ask_price","bid_price","bid_amount"]
[1738937142437,6.689e-05,98971.0,98970.0,1.03543018]
[1738937143732,6.689e-05,98971.0,98970.0,1.33543018]
[1738937143733,9e-08,98971.0,98970.0,1.33543018]
[1738937144021,9e-08,98972.0,98971.0,0.2020082]
[1738937144526,9e-08,98972.0,98971.0,0.5020082]
[1738937144930,9e-08,98972.0,98971.0,1.2020082]
[1738937145424,0.1497478,99000.0,98999.0,0.2019512]
[1738937146019,0.1497478,99000.0,98999.0,0.9019512]
[1738937146618,9.996e-05,99009.0,98999.0,0.7]
[1738937146819,9.996e-05,99009.0,99008.0,0.2019328]
[1738937147323,9.996e-05,99009.0,99008.0,0.5627328]
[1738937148623,0.00409996,99009.0,99008.0,0.5627328]
[1738937152330,0.00409996,99009.0,99008.0,1.2627328]
[1738937153219,0.3497478,99039.0,99008.0,1.3608]
[1738937153418,0.3497478,99039.0,99037.0,0.201873]
[1738937153728,0.2,99039.0,99038.0,0.3608]
[1738937153918,0.2,99039.0,99038.0,0.7537]
[1738937154414,0.2,99039.0,99038.0,1.4537]
[1738937154622,0.2,99039.0,99038.0,0.3608]
[1738937154930,0.4018696,99039.0,99029.0,0.01013426]
[1738937155230,0.5810727,99038.0,99029.0,0.00015152]
[1738937155419,0.3608,99037.0,99029.0,0.00015152]
[1738937155724,0.3608,99037.0,99030.0,0.2018872]
[1738937155925,0.3608,99037.0,99029.0,0.00015152]
[1738937156123,0.3608,99037.0,99031.0,0.2018849]
[1738937156320,0.2018772,99036.0,99029.0,0.00115152]
[1738937156521,0.3608,99037.0,99029.0,0.20303982]
[1738937156826,0.3608,99037.0,99031.0,0.2018855]
[1738937157029,0.3608,99037.0,99029.0,0.00115152]
[1738937157329,0.3608,99037.0,99033.0,0.2018804]
[1738937157627,0.3608,99037.0,99035.0,0.2018773]
[1738937157819,0.3792,99038.0,99037.0,0.2018738]
[1738937158319,0.2,99039.0,99037.0,0.2018738]
[1738937158519,0.2,99039.0,99038.0,0.7]
[1738937158720,0.19,99039.0,99038.0,0.9061]
[1738937159730,0.197,99039.0,99038.0,0.9061]
[1738937160231,0.197,99039.0,99037.0,0.2028738]
[1738937160432,0.4009,99038.0,99037.0,0.2028738]
[1738937161431,0.197,99039.0,99037.0,0.2028738]
[1738937161635,0.197,99039.0,99038.0,0.001]
[1738937162332,0.007,99038.0,99037.0,0.001]
[1738937162524,0.388,99038.0,99037.0,0.001]
[1738937162824,0.381,99038.0,99037.0,0.2018738]
[1738937164020,0.381,99038.0,99010.0,0.17632583]
[1738937164226,0.3608,99030.0,99002.0,0.5574]
[1738937164425,0.3608,99030.0,99010.0,0.17632583]
[1738937164629,0.3608,99030.0,99028.0,0.2018908]
[1738937164832,0.3608,99037.0,99014.0,0.05199458]
[1738937164833,0.3608,99031.0,99030.0,0.2018881]
[1738937165232,0.381,99038.0,99037.0,0.2018738]
[1738937165427,0.381,99038.0,99031.0,0.2018851]
[1738937165630,0.388,99038.0,99029.0,0.001]
[1738937165827,0.388,99038.0,99035.0,0.2018768]
[1738937166034,0.007,99038.0,99037.0,0.2018738]
[1738937166638,0.007,99038.0,99037.0,0.9281138]
[1738937166940,0.007,99038.0,99037.0,0.9885538]
[1738937170529,0.007,99038.0,99037.0,0.9281138]
[1738937170733,0.007,99038.0,99037.0,0.9885138]
[1738937170932,0.007,99038.0,99037.0,0.2885138]
[1738937171343,0.007,99038.0,99037.0,0.9885138]
[1738937173240,0.1,99050.0,99037.0,1.08664]
[1738937173440,0.01707675,99050.0,99049.0,0.5626494]
[1738937174646,0.01707675,99050.0,99049.0,0.6230494]
[1738937175236,0.02007675,99050.0,99049.0,0.6240494]
[1738937175541,0.02007675,99050.0,99049.0,1.3240494]
[1738937176050,0.02007675,99050.0,99049.0,0.6240494]
[1738937176539,0.02007675,99050.0,99049.0,1.3240494]
[1738937177334,5e-08,99050.0,99049.0,1.3240494]
[1738937178245,5e-08,99050.0,99049.0,1.33431724]
[1738937178431,0.1893,99075.0,99074.0,0.2017985]
[1738937178932,0.1893,99075.0,99066.0,0.0504535]
[1738937178933,0.1925,99079.0,99078.0,0.2017903]
[1738937179142,0.3608,99096.0,99071.0,0.3608]
[1738937179143,0.3608,99109.0,99090.0,0.2017659]
[1738937179334,0.3608,99101.0,99085.0,0.06036]
[1738937179536,0.3608,99101.0,99084.0,0.3608]
[1738937179537,0.5105478,99091.0,99081.0,0.11746189]
[1738937179731,0.5105478,99091.0,99065.0,0.00015142]
[1738937179732,0.3608,99083.0,99070.0,0.11746189]
[1738937179953,0.3608,99072.0,99070.0,0.11746189]
[1738937180243,0.3608,99072.0,99065.0,0.00015142]
[1738937180441,0.2018148,99066.0,99065.0,0.00015142]
[1738937182446,0.30984391,99066.0,99016.0,0.4112787]
[1738937182641,0.30984391,99066.0,99016.0,0.7511]
[1738937182642,0.3608,99050.0,99016.0,0.7511]
[1738937182841,0.3737,99049.0,99041.0,0.201865]
[1738937183036,0.3608,99042.0,99025.0,0.00991834]
[1738937183236,0.3508,99042.0,99029.0,0.5626887]
[1738937183439,0.3737,99049.0,99030.0,0.23492378]
[1738937183745,0.0001511,99049.0,99048.0,0.5626515]
[1738937185253,0.2221,99125.0,99048.0,0.5626515]
[1738937185254,0.3608,99104.0,99088.0,0.2017699]
[1738937185441,0.1873,99097.0,99088.0,0.2017699]
[1738937185641,0.1873,99097.0,99081.0,0.3608]
[1738937185851,0.3608,99096.0,99084.0,0.2017771]
[1738937186242,0.3608,99096.0,99085.0,0.2017752]
[1738937186440,0.3608,99096.0,99081.0,0.3608]
[1738937186848,0.1873,99097.0,99081.0,0.3608]
[1738937187040,0.1873,99097.0,99096.0,0.2017537]
[1738937188745,0.1873,99097.0,99096.0,0.2027537]
[1738937189448,0.1873,99097.0,99096.0,0.001]
[1738937189845,0.1873,99097.0,99080.0,0.06047142]
[1738937189846,0.4873,99097.0,99080.0,0.00015142]
[1738937190039,0.47826189,99090.0,99087.0,0.2017719]
[1738937190245,0.3608,99090.0,99087.0,0.2017719]
[1738937190654,0.6608,99090.0,99087.0,0.2017719]
[1738937190953,0.3608,99090.0,99088.0,0.2017691]
[1738937191150,0.1873,99097.0,99096.0,0.2017537]
[1738937192246,0.1883,99097.0,99096.0,0.2027537]
[1738937193051,0.1883,99097.0,99096.0,0.1527537]
[1738937193652,0.001,99097.0,99096.0,0.1527537]
[1738937193860,5e-08,99100.0,99099.0,0.2017476]
[1738937194150,0.02859499,99124.0,99096.0,0.36128]
[1738937194356,0.0848756,99140.0,99123.0,0.3608]
[1738937194550,0.0848756,99140.0,99138.0,0.2016682]
[1738937194551,0.07054663,99139.0,99138.0,0.2016682]
[1738937194745,0.3608,99164.0,99136.0,0.3608]
[1738937195054,0.2016237,99160.0,99136.0,0.47826189]
[1738937195249,0.1858,99163.0,99137.0,0.06028]
[1738937195453,0.2016662,99139.0,99129.0,0.00015134]
[1738937195654,0.3608,99130.0,99129.0,0.00015134]
[1738937196348,0.5625,99130.0,99129.0,0.00015134]
[1738937196542,0.8625,99130.0,99102.0,0.0015135]
[1738937196746,0.2017395,99103.0,99102.0,0.0015135]
[1738937198750,0.5625395,99103.0,99102.0,0.0015135]
[1738937199851,0.5625395,99103.0,99102.0,0.0025135]
[1738937200152,0.2017287,99109.0,99102.0,0.0025135]
[1738937200355,0.2017308,99108.0,99102.0,0.0015135]
[1738937200657,0.002,99103.0,99102.0,0.0015135]
[1738937201157,0.002,99103.0,99102.0,0.203255]
[1738937201555,0.002,99103.0,99102.0,0.564055]
[1738937201957,0.001,99103.0,99102.0,0.3623135]
[1738937202161,0.3608,99159.0,99102.0,0.6623135]
[1738937202363,0.2016418,99152.0,99132.0,0.3608]
[1738937202546,0.3608,99159.0,99133.0,0.1838]
[1738937202749,0.2016498,99148.0,99133.0,0.1838]
[1738937203056,0.3608,99159.0,99133.0,0.1838]
[1738937203259,0.0045141,99135.0,99133.0,0.1838]
[1738937203856,0.0025141,99135.0,99133.0,0.1838]
[1738937204557,0.0025141,99135.0,99127.0,0.3608]
[1738937204750,0.2016943,99126.0,99124.0,0.00015134]
[1738937205055,0.3608,99131.0,99124.0,0.00015134]
[1738937205259,0.2016878,99129.0,99124.0,0.00015134]
[1738937205555,0.3608,99131.0,99124.0,0.00015134]
[1738937206256,0.2016936,99126.0,99124.0,0.00315134]
[1738937206759,0.2016936,99126.0,99124.0,0.00115134]
[1738937207061,0.1775,99125.0,99124.0,0.00115134]
[1738937209149,0.1775,99125.0,99124.0,0.00015134]
[1738937209359,0.1775,99125.0,99124.0,0.00215134]
[1738937209966,0.1775,99125.0,99124.0,0.00115134]
[1738937210460,0.3608,99128.0,99127.0,0.2016906]
[1738937210657,0.3608,99128.0,99124.0,0.00115134]
[1738937210855,0.5624892,99128.0,99125.0,0.2016947]
[1738937211250,0.3608,99128.0,99126.0,0.2016918]
[1738937211461,0.0015141,99135.0,99127.0,0.1813]
[1738937211662,0.0015141,99135.0,99134.0,0.2016764]
[1738937212662,0.2016122,99166.0,99141.0,0.2016621]
[1738937212854,0.1854,99170.0,99141.0,0.5624621]
[1738937213051,0.3608,99164.0,99141.0,0.5624621]
[1738937213363,0.2016372,99154.0,99141.0,0.5624621]
[1738937213552,0.1726,99163.0,99141.0,0.3608]
[1738937213749,0.2016552,99145.0,99137.0,0.3608]
[1738937213949,0.17588578,99160.0,99137.0,0.3608]
[1738937214155,0.2016653,99140.0,99137.0,0.3608]
[1738937214359,0.3608,99144.0,99129.0,0.562485]
[1738937214555,0.2016752,99135.0,99129.0,0.3608]
[1738937215051,0.2016831,99131.0,99129.0,0.3608]
[1738937216060,0.3608,99137.0,99130.0,0.2016829]
[1738937216462,0.3608,99137.0,99129.0,0.3618]
[1738937216663,0.2016723,99136.0,99129.0,0.3618]
[1738937216860,0.5624709,99137.0,99129.0,0.3608]
[1738937217056,0.2016729,99136.0,99129.0,0.3618]
[1738937217556,0.1726,99141.0,99129.0,0.3618]
[1738937217557,0.3742627,99141.0,99134.0,0.2016757]
[1738937217763,0.3742627,99141.0,99129.0,0.3618]
[1738937217764,0.3742627,99141.0,99135.0,0.2016736]
[1738937217964,0.1726,99141.0,99140.0,0.2016642]
[1738937219251,0.2016709,99137.0,99135.0,0.2016738]
[1738937220164,0.1726,99141.0,99139.0,0.2016645]
[1738937220357,0.3742622,99141.0,99139.0,0.2016645]
[1738937221161,0.1726,99141.0,99129.0,0.3608]
[1738937221373,0.2016808,99133.0,99132.0,0.2016789]
[1738937221569,0.2016668,99139.0,99138.0,0.2016642]
[1738937222258,0.2016756,99135.0,99132.0,0.2016801]
[1738937222565,0.2016756,99135.0,99134.0,0.2016764]
[1738937222965,0.001,99136.0,99129.0,0.3608]
[1738937223165,0.2016845,99130.0,99129.0,0.3608]
[1738937223466,0.2016722,99137.0,99134.0,0.2016759]
[1738937223664,0.2016781,99136.0,99135.0,0.2016741]
[1738937223861,0.2016781,99136.0,99129.0,0.3608]
[1738937223862,0.2016803,99133.0,99129.0,0.3608]
[1738937224170,0.2016803,99133.0,99132.0,0.2016805]
[1738937224758,0.2016845,99130.0,99129.0,0.3608]
[1738937225266,0.18282337,99141.0,99129.0,0.3608]
[1738937225474,0.2016799,99134.0,99133.0,0.201678]
[1738937226268,0.1726,99141.0,99139.0,0.2016657]
[1738937226463,5.936e-05,99142.0,99141.0,0.2016621]
[1738937227073,5.936e-05,99142.0,99141.0,0.5624621]
[1738937229076,0.00205936,99142.0,99141.0,0.5624621]
[1738937230475,0.00205936,99142.0,99141.0,0.3608]
[1738937230872,0.20371946,99142.0,99141.0,0.3608]
[1738937231067,0.00205936,99142.0,99141.0,0.3608]
[1738937231268,0.00205936,99142.0,99130.0,0.11724162]
[1738937231474,0.00205936,99142.0,99137.0,0.2016692]
[1738937231672,0.00205936,99142.0,99120.0,0.11724162]
[1738937231673,0.201688,99129.0,99119.0,0.2017056]
[1738937231872,0.2016662,99139.0,99137.0,0.02521]
[1738937233372,0.2026662,99139.0,99137.0,0.02521]
[1738937233878,0.001,99139.0,99137.0,0.2268787]
[1738937235379,0.001,99139.0,99138.0,0.1787]
[1738937237078,5.936e-05,99142.0,99140.0,0.2016633]
[1738937237280,5.936e-05,99142.0,99141.0,0.3608]
[1738937238174,5.936e-05,99142.0,99138.0,0.1787]
[1738937238574,5.936e-05,99142.0,99141.0,0.5624621]
[1738937239177,0.00205936,99142.0,99141.0,0.5624621]
[1738937240180,0.00205936,99142.0,99141.0,0.3608]
[1738937240979,0.00205936,99142.0,99141.0,0.5624621]
[1738937241176,0.00205936,99142.0,99138.0,0.1787]
[1738937241376,0.00205936,99142.0,99140.0,0.2016624]
[1738937242078,0.1811,99169.0,99156.0,0.2016316]
[1738937242282,0.0036,99168.0,99151.0,0.3608]
[1738937242482,0.0036,99168.0,99152.0,0.2016383]
[1738937242687,0.0036,99168.0,99162.0,0.3608]
[1738937242986,0.0036,99168.0,99167.0,0.2016093]
[1738937243181,0.01010726,99172.0,99171.0,0.2016011]
[1738937243377,0.201561,99191.0,99176.0,0.2015906]
[1738937243577,0.2102253,99193.0,99170.0,0.11724162]
[1738937243774,0.3608,99178.0,99173.0,0.00015126]
[1738937243976,0.2015803,99182.0,99173.0,0.00015126]
[1738937244272,4.011e-05,99190.0,99175.0,0.3608]
[1738937244674,0.20160361,99190.0,99177.0,0.2015877]
[1738937244874,0.20160361,99190.0,99180.0,0.2015818]
[1738937244875,4.011e-05,99190.0,99180.0,0.2015818]
[1738937245277,4.011e-05,99190.0,99180.0,0.11724162]
[1738937245481,4.011e-05,99190.0,99182.0,0.2015777]
[1738937245676,4.011e-05,99190.0,99180.0,0.11724162]
[1738937245885,4.011e-05,99190.0,99188.0,0.2015662]
[1738937246083,4.011e-05,99190.0,99187.0,0.3608]
[1738937246274,4.011e-05,99190.0,99181.0,0.1771]
[1738937246474,4.011e-05,99190.0,99182.0,0.183]
[1738937246680,0.2015645,99189.0,99182.0,0.183]
[1738937247080,4.011e-05,99190.0,99188.0,0.001]
[1738937248584,4.011e-05,99190.0,99183.0,0.1843]
[1738937248782,4.011e-05,99190.0,99188.0,0.5623646]
[1738937249384,4.011e-05,99190.0,99188.0,0.5633646]
[1738937249783,0.2102253,99222.0,99188.0,0.6618]
[1738937249998,0.3608,99273.0,99238.0,0.201465]
[1738937250183,0.3608,99273.0,99246.0,0.2014488]
[1738937250492,0.3608,99273.0,99246.0,0.3608]
[1738937250686,0.3608,99273.0,99263.0,0.23448324]
[1738937250878,4.021e-05,99290.0,99270.0,0.3608]
[1738937251186,4.021e-05,99290.0,99286.0,0.3608]
[1738937251490,4.021e-05,99290.0,99280.0,0.11724162]
[1738937251688,0.201396,99272.0,99271.0,0.00056]
[1738937251892,0.201396,99272.0,99270.0,0.00015115]
[1738937252382,0.2013634,99289.0,99271.0,0.3608]
[1738937252585,4.021e-05,99290.0,99286.0,0.001]
[1738937253287,4.021e-05,99290.0,99289.0,0.3608]
[1738937253492,4.021e-05,99290.0,99289.0,0.5621615]
[1738937253678,4.021e-05,99290.0,99289.0,0.3608]
[1738937254077,4.021e-05,99290.0,99289.0,0.5621615]
[1738937254685,0.3608,99318.0,99289.0,0.3608]
[1738937254890,0.3608,99318.0,99299.0,0.3608]
[1738937255080,0.3608,99318.0,99299.0,0.42076]
[1738937255388,0.3608,99340.0,99311.0,0.2013153]
[1738937255588,0.2012669,99336.0,99320.0,0.53610091]
[1738937255795,0.3608,99340.0,99325.0,0.2012883]
[1738937255987,0.3608,99340.0,99330.0,0.37657871]
[1738937256589,0.3608,99340.0,99330.0,0.53610091]
[1738937256793,0.2012167,99361.0,99330.0,0.53610091]
[1738937256995,0.00979481,99368.0,99350.0,0.2012379]
[1738937257186,0.3608,99370.0,99350.0,0.2012379]
[1738937257385,0.3608,99370.0,99344.0,0.3608]
[1738937257587,0.3608,99381.0,99369.0,0.2011994]
[1738937257793,0.3608,99370.0,99360.0,0.17530091]
[1738937257985,0.2012088,99365.0,99360.0,0.17530091]
[1738937258191,0.2012088,99365.0,99336.0,0.3608]
[1738937258192,0.3608,99363.0,99340.0,0.17530091]
[1738937258386,0.3608,99353.0,99350.0,0.17530091]
[1738937258597,0.3608,99364.0,99352.0,0.3608]
[1738937258894,0.2012118,99363.0,99353.0,0.3608]
[1738937259097,0.3608,99354.0,99350.0,0.17530091]
[1738937259297,0.3608,99353.0,99342.0,0.000151]
[1738937259493,0.36140001,99364.0,99343.0,0.3608]
[1738937259795,0.3608,99364.0,99345.0,0.3608]
[1738937260091,0.2012118,99363.0,99351.0,0.2012356]
[1738937260298,0.2012166,99361.0,99345.0,0.3608]
[1738937260499,0.2012166,99361.0,99350.0,0.17530091]
[1738937260797,0.3608,99364.0,99356.0,0.2012246]
[1738937261093,0.3608,99364.0,99350.0,0.17530091]
[1738937261292,0.3608,99389.0,99363.0,0.3608]
[1738937261485,0.3608,99389.0,99380.0,0.17530091]
[1738937261688,0.3608,99389.0,99377.0,0.2011821]
[1738937261886,0.3608,99389.0,99382.0,0.201173]
[1738937262085,0.3608,99389.0,99380.0,0.2011772]
[1738937262287,0.3608,99389.0,99379.0,0.17530091]
[1738937262288,0.3608,99389.0,99383.0,0.2011704]
[1738937262686,0.3608,99389.0,99375.0,0.000151]
[1738937262887,4.031e-05,99390.0,99387.0,0.3608]
[1738937263087,4.031e-05,99390.0,99388.0,0.201161]
[1738937263294,4.031e-05,99390.0,99389.0,0.05988]
[1738937263487,0.2011237,99407.0,99389.0,0.05988]
[1738937263695,0.3608,99412.0,99398.0,0.3608]
[1738937264198,0.2011264,99406.0,99398.0,0.3608]
[1738937264395,0.3608,99444.0,99398.0,0.6608]
[1738937264596,0.3608,99468.0,99434.0,0.3608]
[1738937264792,0.3608,99447.0,99424.0,0.2010862]
[1738937264989,0.2010531,99442.0,99430.0,0.17530091]
[1738937265198,0.2010531,99442.0,99441.0,0.00015082]
[1738937265396,0.2010518,99442.0,99441.0,0.00015082]
[1738937265598,0.3608,99445.0,99430.0,0.17530091]
[1738937265794,0.3608,99447.0,99438.0,0.3608]
[1738937265999,0.2010478,99444.0,99435.0,0.3608]
[1738937266196,0.2010531,99442.0,99435.0,0.3608]
[1738937266401,0.2010531,99442.0,99416.0,0.3608]
[1738937266402,0.3608,99438.0,99416.0,0.42064]
[1738937266698,0.6608,99453.0,99428.0,0.17530091]
[1738937266699,0.1724,99452.0,99428.0,0.17530091]
[1738937266998,0.00014909,99437.0,99423.0,0.3608]
[1738937267300,0.20121109,99437.0,99423.0,0.3608]
[1738937267500,0.2010785,99429.0,99423.0,0.3608]
[1738937267799,0.2010679,99435.0,99423.0,0.3608]
[1738937268006,0.17530091,99450.0,99417.0,0.00015082]
[1738937268205,0.2010565,99440.0,99429.0,0.3608]
[1738937268396,0.2010558,99440.0,99439.0,0.3608]
[1738937268592,0.3608,99451.0,99436.0,0.3608]
[1738937268796,0.2010523,99442.0,99436.0,0.3608]
[1738937269002,0.1990523,99442.0,99436.0,0.3608]
[1738937269407,0.1813,99459.0,99436.0,0.3608]
[1738937269704,0.1813,99459.0,99456.0,0.3608]
[1738937269900,0.1813,99459.0,99448.0,0.2010377]
[1738937270409,0.2010523,99442.0,99429.0,0.00015082]
[1738937270595,0.17530091,99450.0,99429.0,0.00015082]
[1738937270790,0.2010399,99448.0,99429.0,0.00015082]
[1738937271005,0.2010506,99443.0,99429.0,0.36095082]
[1738937271197,0.2010506,99443.0,99430.0,0.2010759]
[1738937271396,0.2010589,99439.0,99430.0,0.2010759]
[1738937271599,0.2010381,99449.0,99437.0,0.5618618]
[1738937271796,0.1747,99454.0,99446.0,0.3608]
[1738937271993,0.2010161,99460.0,99448.0,0.2010378]
[1738937272202,0.2010161,99460.0,99459.0,0.3608]
[1738937272407,0.3,99460.0,99447.0,0.3608]
[1738937272605,0.2010154,99460.0,99459.0,0.3608]
[1738937272999,4.041e-05,99490.0,99459.0,0.3608]
[1738937273211,0.00984945,99490.0,99482.0,0.3608]
[1738937273400,0.200969,99483.0,99482.0,0.3608]
[1738937273709,0.200969,99483.0,99482.0,0.36069054]
[1738937273915,4.041e-05,99490.0,99488.0,0.2009575]
[1738937274101,4.041e-05,99490.0,99489.0,0.3608]
[1738937274498,0.00150884,99494.0,99493.0,0.2009488]
[1738937275210,0.1,99500.0,99493.0,0.1]
[1738937275402,0.1,99500.0,99499.0,0.5617366]
[1738937275597,0.1,99500.0,99499.0,0.3608]
[1738937275916,0.3009346,99500.0,99499.0,0.3608]
[1738937276600,0.1,99500.0,99499.0,0.3608]
[1738937277004,0.3009346,99500.0,99499.0,0.3608]
[1738937277408,0.1,99500.0,99499.0,0.3608]
[1738937277717,0.17530091,99530.0,99499.0,0.3608]
[1738937278010,0.2009545,99510.0,99509.0,0.3608]
[1738937278203,0.0502295,99509.0,99481.0,0.3608]
[1738937278408,0.200971,99482.0,99481.0,0.3608]
[1738937278604,0.2009912,99472.0,99460.0,0.17530091]
[1738937278812,0.2010094,99463.0,99462.0,0.3608]
[1738937279117,0.201049,99444.0,99442.0,0.3608]
[1738937279414,0.201049,99444.0,99430.0,0.17530091]
[1738937279415,0.2010704,99433.0,99430.0,0.17641479]
[1738937279710,0.2010677,99435.0,99433.0,0.00015082]
[1738937279908,0.2010741,99431.0,99430.0,0.17641479]
[1738937280508,0.2010863,99425.0,99424.0,0.23727686]
[1738937280810,0.3608,99438.0,99416.0,0.29304336]
[1738937280811,0.3308,99427.0,99416.0,0.29304336]
[1738937281010,0.3608,99438.0,99417.0,0.3608]
[1738937281309,0.3608,99443.0,99420.0,0.17530091]
[1738937281310,0.00015081,99431.0,99420.0,0.17530091]
[1738937281511,0.00015081,99431.0,99426.0,0.3608]
[1738937281707,0.201068,99435.0,99426.0,0.3608]
[1738937281903,0.182,99444.0,99426.0,0.3608]
[1738937282103,0.2010807,99428.0,99426.0,0.3608]
[1738937282300,0.482,99444.0,99426.0,0.3608]
[1738937282504,0.2010627,99437.0,99426.0,0.3608]
[1738937282710,0.2010661,99435.0,99427.0,0.201082]
[1738937282916,0.482,99444.0,99426.0,0.3608]
[1738937283110,0.2010672,99435.0,99426.0,0.3608]
[1738937283314,0.182,99444.0,99434.0,0.3608]
[1738937283608,0.2010515,99443.0,99438.0,0.2010583]
[1738937283909,0.182,99444.0,99434.0,0.3608]
[1738937284118,0.201066,99435.0,99434.0,0.3608]
[1738937285002,0.182,99444.0,99434.0,0.3608]
[1738937285303,0.3608,99438.0,99429.0,0.3608]
[1738937285616,0.2011105,99413.0,99412.0,0.00015082]
[1738937285809,0.3608,99430.0,99384.0,0.2011673]
[1738937285810,0.2011348,99401.0,99384.0,0.2011673]
[1738937286006,0.2011791,99380.0,99376.0,0.3608]
[1738937286306,0.2011531,99392.0,99376.0,0.3608]
[1738937286508,0.2011455,99396.0,99384.0,0.2011686]
[1738937286708,0.2011455,99396.0,99387.0,0.2011613]
[1738937286904,0.3608,99406.0,99396.0,0.2011441]
[1738937287210,0.3608,99420.0,99412.0,0.2011125]
[1738937287518,0.2010841,99427.0,99404.0,0.3608]
[1738937287816,0.0001509,99426.0,99406.0,0.0001509]
[1738937288319,0.2010928,99422.0,99409.0,0.2011184]
[1738937288521,0.2010959,99421.0,99411.0,0.2011141]
[1738937288712,0.6608,99425.0,99411.0,0.2011141]
[1738937288907,0.2010926,99422.0,99406.0,0.0001509]
[1738937289119,0.00060001,99425.0,99407.0,0.2011208]
[1738937289321,0.0001509,99426.0,99406.0,0.0001509]
[1738937289515,0.2011113,99413.0,99406.0,0.0001509]
[1738937289823,0.2011218,99408.0,99406.0,0.0001509]
[1738937290315,0.3608,99425.0,99406.0,0.0001509]
[1738937290516,0.6608,99425.0,99407.0,0.2011226]
[1738937290707,0.2011227,99407.0,99406.0,0.0001509]
[1738937290913,0.7216,99407.0,99379.0,0.3608]
[1738937291213,0.2011523,99393.0,99379.0,0.3608]
[1738937291417,0.2011362,99401.0,99393.0,0.2011498]
[1738937291618,0.2011362,99401.0,99389.0,0.3608]
[1738937291619,0.1811,99406.0,99389.0,0.3608]
[1738937291819,0.3608,99404.0,99389.0,0.3608]
[1738937292018,0.3608,99415.0,99397.0,0.3608]
[1738937292219,0.2011328,99402.0,99397.0,0.3608]
[1738937292415,0.0001509,99407.0,99397.0,0.3608]
[1738937292616,0.2011557,99391.0,99389.0,0.3608]
[1738937292818,0.3608,99390.0,99388.0,0.0001509]
[1738937293023,0.2011457,99396.0,99390.0,0.2011561]
[1738937293319,0.3608,99402.0,99399.0,0.2011375]
[1738937293522,0.3608,99402.0,99388.0,0.0001509]
[1738937293720,0.2011579,99390.0,99388.0,0.0001509]
[1738937294128,0.20115,99394.0,99389.0,0.2011577]
[1738937294423,0.2011579,99390.0,99388.0,0.0001509]
[1738937294721,0.3,99402.0,99388.0,0.0001509]
[1738937294722,0.2011433,99397.0,99388.0,0.0001509]
[1738937294925,0.3,99402.0,99397.0,0.2011411]
[1738937295124,0.5348,99406.0,99388.0,0.0001509]
[1738937295422,0.2011589,99390.0,99388.0,0.0001509]
[1738937296216,0.3608,99389.0,99388.0,0.0001509]
[1738937296430,0.5151,99389.0,99331.0,0.3608]
[1738937296723,0.201234,99352.0,99331.0,0.3608]
[1738937297127,0.501234,99352.0,99317.0,0.1583]
[1738937297331,0.2012462,99346.0,99326.0,0.2012848]
[1738937297528,0.2012563,99341.0,99316.0,0.80271709]
[1738937297721,0.5620705,99334.0,99316.0,0.60141109]
[1738937298030,0.2012931,99323.0,99316.0,0.60141109]
[1738937298232,0.3608,99322.0,99316.0,0.60141109]
[1738937298919,0.6608,99322.0,99316.0,0.60141109]
[1738937299115,0.2013041,99318.0,99316.0,0.00052]
[1738937299320,0.2013245,99308.0,99300.0,0.1]
[1738937299518,0.3608,99307.0,99300.0,0.1]
[1738937299729,0.6608,99320.0,99300.0,0.1]
[1738937299920,0.06364,99326.0,99305.0,0.3608]
[1738937300125,0.06364,99326.0,99306.0,0.2013263]
[1738937300328,0.00015098,99331.0,99324.0,0.3608]
[1738937300928,0.00015098,99331.0,99325.0,0.3608]
[1738937301235,0.00015098,99331.0,99328.0,0.2012806]
[1738937301531,0.0015112,99342.0,99341.0,0.2012563]
[1738937301719,0.3608,99363.0,99341.0,0.2012563]
[1738937302122,0.2012141,99362.0,99341.0,0.2012563]
[1738937302320,0.2012141,99362.0,99343.0,0.2012505]
[1738937302928,0.00015098,99362.0,99353.0,0.3608]
[1738937303126,0.14852064,99381.0,99370.0,0.2011962]
[1738937303325,0.14852064,99381.0,99370.0,0.5619962]
[1738937303932,0.14852064,99381.0,99370.0,0.3608]
[1738937304122,0.14852064,99381.0,99380.0,0.5619773]
[1738937304837,0.00015098,99385.0,99384.0,0.2011692]
[1738937305026,0.00015098,99385.0,99384.0,0.5619692]
[1738937306036,0.00151008,99401.0,99384.0,0.3608]
[1738937306326,0.00151008,99401.0,99372.0,0.1]
[1738937306327,0.00151008,99401.0,99400.0,0.7216]
[1738937306532,0.2079289,99407.0,99400.0,0.7216]
[1738937306831,0.3608,99432.0,99411.0,0.2011143]
[1738937307131,0.00076,99454.0,99429.0,0.3608]
[1738937307132,0.2010452,99446.0,99429.0,0.3608]
[1738937307330,0.2010452,99446.0,99440.0,0.3608]
[1738937307539,0.2010452,99446.0,99445.0,0.3608]
[1738937307725,0.00150936,99452.0,99445.0,0.3608]
[1738937308030,0.00150936,99452.0,99450.0,0.3608]
[1738937308233,0.00150936,99452.0,99436.0,0.0001509]
[1738937308234,0.00150936,99452.0,99436.0,0.3609509]
[1738937308422,0.2100544,99441.0,99436.0,0.3609509]
[1738937308628,0.009,99441.0,99436.0,0.3609509]
[1738937308827,0.009,99441.0,99437.0,0.2010619]
[1738937309029,0.00150936,99452.0,99437.0,0.2010619]
[1738937309331,0.2010338,99451.0,99450.0,0.001]
[1738937309522,0.5618338,99451.0,99450.0,0.001]
[1738937309730,0.5618338,99451.0,99436.0,0.3609509]
[1738937309731,0.201044,99446.0,99436.0,0.3609509]
[1738937309931,0.2010526,99442.0,99436.0,0.3609509]
[1738937310135,0.00076,99451.0,99436.0,0.7217509]
[1738937310345,0.2010619,99437.0,99436.0,0.0001509]
[1738937310531,0.2010619,99437.0,99419.0,0.3608]
[1738937310835,0.3608,99463.0,99427.0,0.3608]
[1738937311035,0.01280186,99461.0,99437.0,0.2010607]
[1738937311224,0.36230936,99452.0,99436.0,0.3608]
[1738937311428,0.009,99441.0,99440.0,0.2010559]
[1738937311734,0.2010599,99438.0,99437.0,0.001]
[1738937312036,0.309,99441.0,99412.0,0.3608]
[1738937312236,0.2011105,99413.0,99394.0,0.6809]
[1738937312429,0.3608,99419.0,99360.0,0.26959218]
[1738937312632,0.3608,99393.0,99384.0,0.3608]
[1738937313140,0.201158,99390.0,99384.0,0.3608]
[1738937313340,0.3608,99393.0,99384.0,0.3608]
[1738937313640,0.2011643,99387.0,99379.0,0.0001509]